Cogmind - Beta 13 X1 @@@ ROGUE MODE // 2023.12.02 @ 22:48:18 Player: Plexion Result: Destroyed by G-67 Veteran with Plasma Rifle Performance ------------- Evolutions (6) 3000 Regions Visited (26) 5200 Robots Destroyed (144) 720 Value Destroyed (5866) 5866 Prototype IDs (53) 1060 Alien Tech Used (1) 200 Bonus (5540) 5540 TOTAL SCORE: 21586 Bonus ------- High Alert Combat Kills 997 Follower Combat Kills 3168 Entered Garrisons 200 Network Hubs Disabled 400 Met Data Miner 300 Met Imprinter 300 Was Imprinted 300 Met Zhirov 300 Met R17 at Cetus 500 Read Decrypted Archives 300 Friendly Fire -1225 Cogmind --------- Core Integrity 0/1150 Matter 36/300 Energy 95/100 System Corruption 1% Temperature Cool (37) Movement Core (200) Ox3 Location -4/Factory Parts ------- > --- POWER (2) -------- (None) > --- PROPULSION (6) --- (None) > --- UTILITY (10) ----- Medium Storage Unit Machine Analyzer Advanced Signal Interpreter Improved Hacking Suite > --- WEAPON (2) ------- (None) > --- INVENTORY (10) --- Advanced Terrain Scanner Centrium Medium Armor Plating Improved Trap Extractor (3/6 Dirty Bomb) Mini Assault Cannon Peak State ------------ > --- POWER ------------ Heavy Antimatter Reactor > --- PROPULSION ------- Nuclear Pulse Array Flightbrick > --- UTILITY ---------- Medium Storage Unit Machine Analyzer Enhanced Optical Array Advanced Sensor Array Advanced Signal Interpreter 0b10 Decoder Chip [Scout] Advanced Transmission Jammer Centrium Medium Armor Plating Hacking Suite Improved Hacking Suite > --- WEAPON ----------- Mini Assault Cannon Powered Hammer > --- INVENTORY -------- Combat Antigrav System Zionite Biocell Advanced Terrain Scanner Centrium Medium Armor Plating Improved Trap Extractor Long-range Proton Cannon Mini Grenade Launcher 99-TNT's Nukerbomber Multitool [Rating: 119] Favorites ----------- Power Light Ion Engine Engine Light Ion Engine Power Core Light Fission Core Reactor Heavy Antimatter Reactor Propulsion Light Treads Treads Light Treads Wheel Wheel Hover Unit Combat Antigrav System Flight Unit Flightbrick Utility Hacking Suite Device Advanced Sensor Array Storage High-capacity Storage Unit Processor Advanced Signal Interpreter Hackware Hacking Suite Protection Light Armor Plating Weapon Mini Assault Cannon Energy Gun Medium Laser Energy Cannon Long-range Proton Cannon Ballistic Gun Heavy Assault Rifle Ballistic Cannon Mini Assault Cannon Launcher Grenade Launcher Special Weapon Multitool Impact Weapon Powered Hammer Slashing Weapon Great Axe Build | -11 -10 -10 -10 -8 -8 -8 -7 -7 -7 -7 -7 -7 -6 -6 -6 -6 -6 -6 -6 -5 -5 -5 -5 -5 -5 -4 ------- Run | Jun Mat Min Sub Mat Gar Mat Fac Was Fac Low Low Dat Pro Fac Was Fac Low Low Zio Pro Fac Ext Cet Arc Hub Fac Slots Evolved 12 | . . . . 4 . . 2 . . . . . . 2 . . . . . . 2 . . . . 2 Power 1 | . . . . . . . . . . . . . . 1 . . . . . . . . . . . . Propulsion 3 | . . . . 2 . . . . . . . . . . . . . . . . 1 . . . . . Utility 8 | . . . . 2 . . 2 . . . . . . 1 . . . . . . 1 . . . . 2 Weapon . | . . . . . . . . . . . . . . . . . . . . . . . . . . . Parts Attached 201 | 6 6 7 19 25 24 3 9 . 6 3 3 2 2 7 1 5 2 5 7 4 13 15 8 . 4 15 Power 18 | 1 . 1 1 3 3 . . . . . . . . 1 . . . . . . 1 4 . . . 3 Engine 8 | 1 . . 1 . 2 . . . . . . . . . . . . . . . 1 3 . . . . Core 9 | . . 1 . 3 1 . . . . . . . . 1 . . . . . . . 1 . . . 2 Reactor 1 | . . . . . . . . . . . . . . . . . . . . . . . . . . 1 Propulsion 36 | 2 1 3 4 11 8 1 1 . . . . . . 1 . . . . . . . 2 . . . 2 Treads 24 | 2 1 2 1 9 8 1 . . . . . . . . . . . . . . . . . . . . Leg . | . . . . . . . . . . . . . . . . . . . . . . . . . . . Wheel 6 | . . 1 3 2 . . . . . . . . . . . . . . . . . . . . . . Hover 2 | . . . . . . . . . . . . . . . . . . . . . . . . . . 2 Flight 4 | . . . . . . . 1 . . . . . . 1 . . . . . . . 2 . . . . Utility 92 | 1 2 1 5 4 5 1 7 . 2 2 1 2 1 5 1 5 2 4 7 2 12 7 6 . 4 3 Device 40 | . 1 . . . 1 . 1 . . 1 . 1 . 1 1 5 1 2 4 2 11 5 . . 2 1 Storage 8 | 1 1 . 1 1 . . 1 . . . . . . 1 . . . . . . . . 1 . . 1 Processor 7 | . . . . 1 . . 1 . . . . . . 1 . . . . 2 . 1 . 1 . . . Hackware 9 | . . . . . . . 3 . 2 . 1 . . 2 . . . . . . . 1 . . . . Protection 28 | . . 1 4 2 4 1 1 . . 1 . 1 1 . . . 1 2 1 . . 1 4 . 2 1 Artifact . | . . . . . . . . . . . . . . . . . . . . . . . . . . . Weapon 55 | 2 3 2 9 7 8 1 1 . 4 1 2 . 1 . . . . 1 . 2 . 2 2 . . 7 Energy Gun 3 | 1 2 . . . . . . . . . . . . . . . . . . . . . . . . . Energy Cannon 1 | . . . . . . . . . . . . . . . . . . . . . . . 1 . . . Ballistic Gun 20 | 1 1 2 3 5 6 1 . . 1 . . . . . . . . . . . . . . . . . Ballistic Cannon 8 | . . . 3 . . . . . 1 . 1 . . . . . . . . 1 . 1 1 . . . Launcher 15 | . . . 3 2 2 . . . 1 1 . . . . . . . . . 1 . 1 . . . 4 Special Weapon 1 | . . . . . . . . . . . . . . . . . . . . . . . . . . 1 Impact Weapon 4 | . . . . . . . . . . . . . 1 . . . . 1 . . . . . . . 2 Slashing Weapon 3 | . . . . . . . 1 . 1 . 1 . . . . . . . . . . . . . . . Piercing Weapon . | . . . . . . . . . . . . . . . . . . . . . . . . . . . Special Melee Weapon . | . . . . . . . . . . . . . . . . . . . . . . . . . . . Unidentified Prototypes 9 | . . . . 1 . . . . 1 . . . 1 . . . . . 1 . . . 3 . . 2 Parts Lost 35 | . . 2 6 1 11 . . . 1 . . 1 . . . . . . . . . 2 . . 2 9 Power 7 | . . 1 1 . 3 . . . . . . . . . . . . . . . . . . . 1 1 Propulsion 8 | . . 1 2 . 2 . . . . . . . . . . . . . . . . 1 . . . 2 Utility 13 | . . . 1 1 4 . . . 1 . . . . . . . . . . . . 1 . . 1 4 Weapon 7 | . . . 2 . 2 . . . . . . 1 . . . . . . . . . . . . . 2 Highest Loss Streak 8 | . . 2 2 1 8 . . . 1 . . 1 . . . . . . . . . 1 . . 1 3 To Critical Strikes 2 | . . . . . 1 . . . . . . . . . . . . . . . . . . . . 1 Average Slot Usage (%) 86 | . 89 91 99 85 89 90 73 75 77 80 80 79 73 75 77 77 77 77 77 77 75 80 79 80 79 60 Engine 5 | . 14 2 10 . . 9 6 6 6 6 6 6 6 2 . . . . . . . 4 5 5 4 . Core 4 | . . 10 3 8 6 . . . . . . . . 2 5 5 5 5 5 5 5 4 5 5 5 2 Treads 13 | . 28 24 22 25 29 27 . . . . . . . . . . . . . . . . . . . . Wheel 2 | . . . 5 6 . . . . . . . . . . . . . . . . . . . . . . Flight 4 | . . . . . . . 6 6 6 6 6 6 6 8 11 11 11 11 11 11 10 12 10 10 10 7 Device 3 | . 5 5 . . 4 . 6 6 6 6 6 7 6 5 5 5 7 6 8 11 10 6 5 5 5 6 Storage 9 | . 14 14 13 9 9 9 4 6 6 6 6 6 6 5 5 5 5 5 5 5 5 5 5 5 5 5 Processor 6 | . . . . 8 9 9 5 6 6 6 6 6 6 5 5 5 5 5 9 16 20 20 20 20 20 19 Hackware 7 | . . . . . . . 17 18 23 26 26 26 25 27 27 27 27 27 19 11 10 13 15 15 14 7 Protection 8 | . . 8 13 9 11 18 12 12 7 5 6 4 6 5 5 5 2 3 5 5 5 4 4 5 4 2 Ballistic Gun 9 | . 13 17 16 17 17 18 6 6 5 . . . . . . . . . . . . . . . . . Ballistic Cannon 3 | . . . 4 . . . . . . 6 6 6 6 5 5 5 5 5 5 5 5 4 4 5 5 2 Launcher 1 | . . . 6 . . . . . . . . . . . . . . . . . . . . . . . Impact Weapon 1 | . . . . . . . . . . . . . 4 5 5 5 5 5 5 5 5 5 5 5 5 3 Naked Turns . | . . . . . . . . . . . . . . . . . . . . . . . . . . . Heaviest Build 71 | 13 49 52 55 71 70 61 24 24 24 24 24 23 24 29 31 36 30 30 30 30 37 32 37 35 35 36 Greatest Support 127 | 40 40 40 40 80 127 127 24 24 24 24 24 24 24 30 30 30 30 30 30 30 30 37 37 37 37 37 Greatest Overweight (x) 6 | . 1 4 5 6 . . . . . . . . . . 1 1 . . . . 1 . . . . 3 Average Overweight (x) . | . . 1 2 1 . . . . . . . . . . . . . . . . . . . . . . Largest Inventory Capacity 20 | 8 20 20 20 20 20 20 20 8 8 8 8 8 8 10 10 10 10 10 10 10 10 10 10 10 10 10 Average Capacity 15 | 7 10 20 19 19 20 20 8 8 8 8 8 8 8 9 10 10 10 10 10 10 10 10 10 10 10 10 Most Carried 20 | 2 5 12 20 20 20 20 20 7 8 8 8 8 8 10 10 10 10 10 10 10 10 10 10 10 10 10 Average Carried 12 | . 3 9 15 19 19 19 6 7 7 7 7 6 7 8 9 9 9 10 9 9 9 9 9 10 9 9 Final Capacity 20 | 8 20 20 20 20 20 20 8 8 8 8 8 8 8 10 10 10 10 10 10 10 10 10 10 10 10 10 Final Carried 20 | 2 5 12 19 20 18 18 7 7 6 8 8 8 8 10 9 10 10 10 9 10 10 10 10 10 9 4 Class Distribution -------------------- 28% | Mutant 20% | Hacker-Mutant 16% | Scavenger-Mutant 13% | Hacker-Scout 12% | Subdweller-Mutant Dominant Class ---------------- Mutant | -10/Materials Scavenger-Mutant | -10/Mines Mutant | -10/Subcaves Subdweller-Mutant | -8/Materials Mutant | -8/Garrison Scavenger-Mutant | -8/Materials Hacker-Mutant | -7/Factory Hacker-Mutant | -7/Waste Hacker-Mutant | -7/Factory Hacker-Mutant | -7/Lower Caves Hacker-Mutant | -7/Lower Caves Hacker-Mutant | -7/Data Miner Hacker-Mutant | -6/Proximity Caves Hacker-Mutant | -6/Factory Hacker-Mutant | -6/Waste Hacker-Mutant | -6/Factory Hacker-Mutant | -6/Lower Caves Hacker-Mutant | -6/Lower Caves Hacker-Scout | -6/Zion Hacker-Scout | -5/Proximity Caves Derelict-Ninja | -5/Factory Hacker-Scout | -5/Extension Hacker-Scout | -5/Cetus Hacker-Scout | -5/Archives Hacker-Scout | -5/Hub_04(d) Hacker-Ninja | -4/Factory Resources | -11 -10 -10 -10 -8 -8 -8 -7 -7 -7 -7 -7 -7 -6 -6 -6 -6 -6 -6 -6 -5 -5 -5 -5 -5 -5 -4 ----------- Run | Jun Mat Min Sub Mat Gar Mat Fac Was Fac Low Low Dat Pro Fac Was Fac Low Low Zio Pro Fac Ext Cet Arc Hub Fac Matter Collected 4468 | 205 125 99 619 754 792 124 90 24 95 32 30 . 97 58 46 35 55 71 60 . 191 393 86 . 104 283 Remotely . | . . . . . . . . . . . . . . . . . . . . . . . . . . . Salvage Created 5229 | . 184 336 278 907 1030 304 126 . 208 27 104 . 43 361 . 37 58 . . 11 201 271 . . 46 697 Parts 235 | . 13 11 22 52 59 16 9 . 16 1 1 . 3 11 . 1 . . . 1 3 5 . . . 11 Haulers Intercepted 5 | . . . . 3 . 1 . . 1 . . . . . . . . . . . . . . . . . Recyclers Shooed 5 | . . 4 . . . . . . . . . . . . . . . . . . . . . . . 1 Parts Field Recycled . | . . . . . . . . . . . . . . . . . . . . . . . . . . . Retrieved Matter . | . . . . . . . . . . . . . . . . . . . . . . . . . . . Parts Self-Destructed 17 | . . . 13 . . . . . . . . . . . . . . 3 . 1 . . . . . . Prevented . | . . . . . . . . . . . . . . . . . . . . . . . . . . . Kills | -11 -10 -10 -10 -8 -8 -8 -7 -7 -7 -7 -7 -7 -6 -6 -6 -6 -6 -6 -6 -5 -5 -5 -5 -5 -5 -4 ------- Run | Jun Mat Min Sub Mat Gar Mat Fac Was Fac Low Low Dat Pro Fac Was Fac Low Low Zio Pro Fac Ext Cet Arc Hub Fac Combat Hostiles Destroyed 85 | . 6 3 8 14 20 5 . . 4 . . . . . . . . . . 1 . 5 . . 1 18 Melee 3 | . . . . . . . . . . . . . . . . . . . . . . . . . . 3 Guns 38 | . 6 3 1 8 15 5 . . . . . . . . . . . . . . . . . . . . Cannons 4 | . . . 1 . . . . . . . . . . . . . . . . . . 1 . . 1 1 AOE 38 | . . . 6 6 5 . . . 4 . . . . . . . . . . 1 . 4 . . . 12 Classes Destroyed 20 | . 2 4 3 4 2 . . . . 1 . . 1 1 . . . . . . . . . . 1 1 Worker 9 | . . 1 . 3 . . . . 1 . . . . 1 . 1 . . . . 2 . . . . . Builder 9 | . . 1 . 2 . . . . . . . . . 3 . 2 . . . . 1 . . . . . Tunneler 2 | . . . . . . . . . . . . . . 1 . . . . . . 1 . . . . . Hauler 5 | . . . . 3 . 1 . . 1 . . . . . . . . . . . . . . . . . Recycler 9 | . . 2 . . . . 1 . 1 . . . . 2 . . . . . . . 1 . . . 2 Minesweeper 2 | . . . . . . . . . . 1 . . . . . . 1 . . . . . . . . . Operator 7 | . . . . 2 . . 1 . 1 . . . . . . . . . . . 1 2 . . . . Watcher 10 | . . . . 1 1 . 1 . 1 . . . . 2 . . . . . . . 2 . . 1 1 Swarmer 23 | . 3 . . . 3 . . . 4 . . . . . . . . . . 1 . 5 . . . 7 Grunt 32 | . 3 2 2 9 5 3 . . . . . . . . . . . . . . . . . . . 8 Sentry 14 | . . 1 . 4 7 2 . . . . . . . . . . . . . . . . . . . . Demolisher 1 | . . . . . . . . . . . . . . . . . . . . . . . . . . 1 Specialist 2 | . . . . . 2 . . . . . . . . . . . . . . . . . . . . . Hunter 5 | . . . . 1 2 . . . . . . . . . . . . . . . . . . . . 2 Programmer 1 | . . . . . . . . . . . . . . . . . . . . . . . . . 1 . Behemoth 1 | . . . . . 1 . . . . . . . . . . . . . . . . . . . . . Artisan 1 | . . . 1 . . . . . . . . . . . . . . . . . . . . . . . Subdweller 8 | . . . 8 . . . . . . . . . . . . . . . . . . . . . . . Zionite 1 | . . . 1 . . . . . . . . . . . . . . . . . . . . . . . Z-Courier 1 | . . . . . . . . . . . . . . . . . . . . . 1 . . . . . Decomposer 4 | . . . . . . . . . . . 2 . . . . . 2 . . . . . . . . . Thug 2 | . . . . . 2 . . . . . . . . . . . . . . . . . . . . . Savage 1 | . . . . . . . . . . . . . 1 . . . . . . . . . . . . . Best Kill Streak 8 | . 3 3 2 6 6 3 3 . 5 1 . . . 3 . 2 1 . . 1 2 8 . . 1 5 Combat Bots Only 5 | . 3 2 2 4 5 3 . . 4 . . . . . . . . . . 1 . 5 . . 1 5 Max Kills in Single Turn 4 | . 1 1 3 3 3 1 1 . 1 1 1 . 1 1 . 1 1 . . 1 1 2 . . 1 4 Gunslinging 1 | . . . . . 1 . . . . . . . . . . . . . . . . . . . . . Exploded 4 | . . . 1 3 3 . . . 1 . . . . . . . . . . 1 . 2 . . . 4 Melee 1 | . . . . . . . . . . . . . . . . . . . . . . . . . . 1 Uniques/NPCs Destroyed . | . . . . . . . . . . . . . . . . . . . . . . . . . . . Combat | -11 -10 -10 -10 -8 -8 -8 -7 -7 -7 -7 -7 -7 -6 -6 -6 -6 -6 -6 -6 -5 -5 -5 -5 -5 -5 -4 -------- Run | Jun Mat Min Sub Mat Gar Mat Fac Was Fac Low Low Dat Pro Fac Was Fac Low Low Zio Pro Fac Ext Cet Arc Hub Fac Damage Taken 8873 | . 269 113 743 824 2169 172 . . 51 . . 179 . 29 . 163 . . . 82 40 474 . . 484 3081 Core 1797 | . 38 10 103 89 315 44 . . . . . . . . . . . . . . . 28 . . 14 1156 Absorbed by Shields 317 | . . . . . 317 . . . . . . . . . . . . . . . . . . . . . Regen/Repaired (Parts) 825 | . . . . 66 . . . . . . . . . 120 . . . . 404 . . . . . . 235 Core Remaining (%) 75 | 100 . . 39 . . 18 . . . . . . 100 . . . . . . 100 . . . . 95 . Volleys Fired 398 | . 20 28 67 72 90 13 . 8 4 2 . . 7 4 . 1 . 1 . 2 15 24 4 . 16 20 Largest 2 | . 2 2 2 2 2 2 . 1 1 1 . . 1 1 . 1 . 1 . 1 1 1 1 . 1 1 Hottest 81 | . 70 70 69 48 53 51 . 23 30 48 . . 48 48 . 48 . 48 . 30 48 48 81 . 48 48 Shots Fired 615 | . 40 55 83 139 163 27 . 8 4 2 . . 7 4 . 1 . 1 . 2 15 24 4 . 16 20 Gun 449 | . 40 55 26 134 159 27 . 8 . . . . . . . . . . . . . . . . . . Cannon 118 | . . . 34 . . . . . . 2 . . 7 4 . 1 . 1 . . 15 20 4 . 16 14 Launcher 47 | . . . 23 5 4 . . . 4 . . . . . . . . . . 2 . 4 . . . 5 Special 1 | . . . . . . . . . . . . . . . . . . . . . . . . . . 1 Kinetic 526 | . 20 29 60 139 163 27 . 8 . 2 . . 7 4 . 1 . 1 . . 15 20 . . 16 14 Thermal 47 | . 20 26 . . . . . . . . . . . . . . . . . . . . . . . 1 Explosive 38 | . . . 23 . . . . . 4 . . . . . . . . . . 2 . 4 . . . 5 Electromagnetic 4 | . . . . . . . . . . . . . . . . . . . . . . . 4 . . . Robot Hit Streak 37 | . 6 7 11 18 37 33 . 7 2 . . . 3 2 . . . . . . . 7 2 . 2 4 Robot Miss Streak 5 | . 2 2 3 2 3 2 . 1 1 . . . 1 1 . . . . . . . 3 1 . 2 5 Penetration Max 1 | . . . . . 1 1 . . . . . . . . . . . . . . . . . . . . Secondary Targets 3 | . 1 . . . 2 . . . . . . . . . . . . . . . . . . . . . Max Gunslinging Chain 1 | . 1 . . . 1 . . . . . . . . . . . . . . . . . . . . . Shots Hit Robots 423 | . 25 37 30 95 121 18 3 7 9 3 4 1 3 10 . 3 3 . . . 6 20 2 . 7 16 Core Hits 219 | . 10 15 18 47 51 11 2 . 9 1 1 . 2 3 . 1 . . . 1 2 10 3 . 4 28 Critical Kills 3 | . . . . . 1 . . . . . . . . 2 . . . . . . . . . . . . Critical Parts Destroyed 5 | . . . . . 1 . . . . . . . . . . 1 2 . . . 1 . . . . . Critical Strikes 13 | . 2 2 1 . 2 . . . . . . . . 2 . 1 2 . . . 1 . . . . . Burn 4 | . 2 2 . . . . . . . . . . . . . . . . . . . . . . . . Destroy 2 | . . . . . 2 . . . . . . . . . . . . . . . . . . . . . Blast 1 | . . . 1 . . . . . . . . . . . . . . . . . . . . . . . Smash 6 | . . . . . . . . . . . . . . 2 . 1 2 . . . 1 . . . . . Melee Attacks 229 | . . . . . . . 9 2 7 9 7 28 1 27 2 26 5 5 1 3 23 24 . . 21 29 Impact 167 | . . . . . . . . . . . . . 1 27 2 26 5 5 1 3 23 24 . . 21 29 Slashing 62 | . . . . . . . 9 2 7 9 7 28 . . . . . . . . . . . . . . Piercing . | . . . . . . . . . . . . . . . . . . . . . . . . . . . Sneak Attacks 35 | . . . . . . . 2 . 5 1 2 1 . 7 . 3 3 . . . 6 3 . . . 2 Combat Hostiles . | . . . . . . . . . . . . . . . . . . . . . . . . . . . Follow-up Attacks . | . . . . . . . . . . . . . . . . . . . . . . . . . . . Damage Inflicted 15820 | . 272 405 1283 2208 2512 351 186 115 892 175 330 96 87 781 . 340 310 . . 118 508 1278 127 . 271 3175 Guns 4973 | . 272 393 318 1488 2036 351 . 115 . . . . . . . . . . . . . . . . . . Cannons 1118 | . . . 153 . . . . . . . . . 87 54 . . . . . . . 388 127 . 233 76 Explosions 5307 | . . . 812 705 476 . . . 333 . . . . . . . . . . 118 . 328 . . . 2535 Melee 4385 | . . . . . . . 186 . 559 175 330 96 . 727 . 340 310 . . . 508 562 . . 38 554 Ramming 32 | . . 12 . 15 . . . . . . . . . . . . . . . . . . . . . 5 Kinetic 6708 | . 85 143 471 2193 2512 351 . 115 . . . . 87 54 . . . . . . . 388 . . 233 76 Thermal 442 | . 187 250 . . . . . . . . . . . . . . . . . . . . . . . 5 Explosive 4126 | . . . 812 . . . . . 333 . . . . . . . . . . 118 . 328 . . . 2535 Electromagnetic 127 | . . . . . . . . . . . . . . . . . . . . . . . 127 . . . Impact 3039 | . . . . . . . . . . . . . . 727 . 340 310 . . . 508 562 . . 38 554 Slashing 1346 | . . . . . . . 186 . 559 175 330 96 . . . . . . . . . . . . . . Piercing . | . . . . . . . . . . . . . . . . . . . . . . . . . . . Highest Corruption 1 | . . . . 1 1 1 . . . . . . . 1 1 1 1 1 1 . . . . . . 1 Average Corruption 1 | . . . . 1 1 1 . . . . . . . 1 1 1 1 1 1 . . . . . . 1 Corruption Purged . | . . . . . . . . . . . . . . . . . . . . . . . . . . . Corruption Blocked 16 | . . . . . . . . . . . . . . . . . . . . . . 16 . . . . Effects 37 | . . . . 9 11 1 . . . . . . . 1 2 4 1 1 . . . . . . . 7 Message Errors 12 | . . . . . 4 . . . . . . . . 1 1 3 . . . . . . . . . 3 Matter Fused 3 | . . . . 1 1 . . . . . . . . . . . 1 . . . . . . . . . Heat Flow Errors 6 | . . . . 3 3 . . . . . . . . . . . . . . . . . . . . . Energy Discharges 2 | . . . . . 1 . . . . . . . . . . . . . . . . . . . . 1 Parts Rejected 2 | . . . . . . . . . . . . . . . . . . . . . . . . . . 2 Parts Fused 1 | . . . . . . . . . . . . . . . 1 . . . . . . . . . . . Data Loss (minor) 6 | . . . . 3 . . . . . . . . . . . 1 . 1 . . . . . . . 1 Data Loss (major) 3 | . . . . 1 2 . . . . . . . . . . . . . . . . . . . . . Misfires 1 | . . . . . . 1 . . . . . . . . . . . . . . . . . . . . Alerts 1 | . . . . 1 . . . . . . . . . . . . . . . . . . . . . . Overload Shots . | . . . . . . . . . . . . . . . . . . . . . . . . . . . Overflow Damage 2341 | . . . 5 . 38 . 47 . 139 51 196 . . 377 . 185 302 . . 13 216 285 . . 3 484 Projectiles . | . . . . . . . . . . . . . . . . . . . . . . . . . . . Explosions 418 | . . . 5 . 38 . . . . . . . . . . . . . . 13 . 47 . . . 315 Melee 1923 | . . . . . . . 47 . 139 51 196 . . 377 . 185 302 . . . 216 238 . . 3 169 Knockbacks 12 | . . . 2 . . . . . . . . . . 4 . 1 . . . . 1 1 . . 1 2 Impact 8 | . . . . . . . . . . . . . . 3 . 1 . . . . 1 1 . . . 2 Kinetic 4 | . . . 2 . . . . . . . . . . 1 . . . . . . . . . . 1 . Secondary . | . . . . . . . . . . . . . . . . . . . . . . . . . . . Self-Inflicted Damage 572 | . . . 93 3 47 . . . . . . . . . . . . . . . . 35 . . . 394 Shots 12 | . . . 5 . 1 . . . . . . . . . . . . . . . . 1 . . . 5 Rammed 6 | . . 1 . 2 . . . . . . . . . . . . . . . . . . . . . 3 Targets Rammed 6 | . . 1 . 2 . . . . . . . . . . . . . . . . . . . . . 3 Kicked . | . . . . . . . . . . . . . . . . . . . . . . . . . . . Crushed . | . . . . . . . . . . . . . . . . . . . . . . . . . . . Highest Temperature 540 | . 209 21 . 258 278 36 . . . 8 . . 34 2 . 10 . 12 . 3 36 540 180 . 70 2 Average Temperature 48 | . 83 6 . 88 46 19 . . . 5 . . 14 1 . 6 . 8 . 3 16 53 88 . 20 1 Received Heat Transfer 1905 | . 120 69 66 306 497 81 . . . . . . . . . 24 . . . 18 18 401 . . 54 251 Effects 9 | . . . . . 1 . . . . . . . . . . . . . . . . 8 . . . . Shutdowns 2 | . . . . . . . . . . . . . . . . . . . . . . 2 . . . . Interference 3 | . . . . . 1 . . . . . . . . . . . . . . . . 2 . . . . Short Circuit 1 | . . . . . . . . . . . . . . . . . . . . . . 1 . . . . Damage (minor) 2 | . . . . . . . . . . . . . . . . . . . . . . 2 . . . . Damage (major) 1 | . . . . . . . . . . . . . . . . . . . . . . 1 . . . . Siege Activations . | . . . . . . . . . . . . . . . . . . . . . . . . . . . Robots Corrupted . | . . . . . . . . . . . . . . . . . . . . . . . . . . . Combat Hostiles . | . . . . . . . . . . . . . . . . . . . . . . . . . . . Parts Fried 28 | . . . . . . . . . . . . . . 12 . 2 3 . . . 3 4 . . . 4 Impact Corruptions 52 | . . . . . . . . . . . . . . 11 . 6 10 . . . 9 8 . . 1 7 Robots Melted . | . . . . . . . . . . . . . . . . . . . . . . . . . . . Combat Hostiles . | . . . . . . . . . . . . . . . . . . . . . . . . . . . Parts Melted 4 | . 2 2 . . . . . . . . . . . . . . . . . . . . . . . . Heat Transferred 1606 | . 703 888 . . . . . . . . . . . . . . . . . . . . . . . 15 Parts Sabotaged 4 | . . . . . . . . . . . . . . . . . . . . . . . . . . 4 Parts Stolen . | . . . . . . . . . . . . . . . . . . . . . . . . . . . Parts Stripped . | . . . . . . . . . . . . . . . . . . . . . . . . . . . Power Chain Reactions . | . . . . . . . . . . . . . . . . . . . . . . . . . . . Missiles Intercepted . | . . . . . . . . . . . . . . . . . . . . . . . . . . . Alert | -11 -10 -10 -10 -8 -8 -8 -7 -7 -7 -7 -7 -7 -6 -6 -6 -6 -6 -6 -6 -5 -5 -5 -5 -5 -5 -4 ------- Run | Jun Mat Min Sub Mat Gar Mat Fac Was Fac Low Low Dat Pro Fac Was Fac Low Low Zio Pro Fac Ext Cet Arc Hub Fac Peak Influence 1791 | . 186 107 . 331 1051 659 264 154 374 . . . . 121 107 268 . . . . 68 634 722 288 403 1791 Initial 512 | . . 72 . . 99 512 211 92 52 . . . . . 16 74 . . . . . 28 354 288 100 115 Average 250 | . 119 36 . 142 431 558 235 94 184 . . . . 47 69 126 . . . . 21 344 564 288 261 874 Maximum Alert Level 5 | . . . . 1 3 2 1 . 1 . . . . . . 1 . . . . . 2 3 1 2 5 Low Security (%) 58 | 100 100 100 . 78 30 . . 100 50 . . . . 100 100 92 . . . . 100 3 . . 9 31 Level 1 23 | . . . . 21 32 . 100 . 49 . . . . . . 7 . . . . . 68 12 100 90 4 Level 2 10 | . . . . . 10 100 . . . . . . . . . . . . . . . 28 57 . . 2 Level 3 4 | . . . . . 26 . . . . . . . . . . . . . . . . . 30 . . 15 Level 4 1 | . . . . . . . . . . . . . . . . . . . . . . . . . . 25 Level 5 1 | . . . . . . . . . . . . . . . . . . . . . . . . . . 19 High Security . | . . . . . . . . . . . . . . . . . . . . . . . . . . . Max Security . | . . . . . . . . . . . . . . . . . . . . . . . . . . . Squads Dispatched 32 | . 1 . . 2 . 1 1 . 1 . . . . 1 . 2 . 1 . . 4 2 . . 5 11 Investigation 7 | . . . . . . 1 . . . . . . . 1 . . . . . . 1 . . . 4 . Extermination 4 | . . . . . . . . . . . . . . . . 1 . . . . 2 . . . . 1 Reinforcement 9 | . 1 . . 1 . . 1 . 1 . . . . . . 1 . . . . 1 2 . . . 1 Assault 4 | . . . . . . . . . . . . . . . . . . 1 . . . . . . . 3 Garrison 8 | . . . . 1 . . . . . . . . . . . . . . . . . . . . 1 6 Intercept . | . . . . . . . . . . . . . . . . . . . . . . . . . . . Searches Triggered . | . . . . . . . . . . . . . . . . . . . . . . . . . . . Construction Impeded 2 | . . . . . . . . . . . . . . . . . . . . . . 1 . . . 1 Haulers Reinforced . | . . . . . . . . . . . . . . . . . . . . . . . . . . . Active Scanning Responses . | . . . . . . . . . . . . . . . . . . . . . . . . . . . Cargo Convoy Interrupts . | . . . . . . . . . . . . . . . . . . . . . . . . . . . Stealth | -11 -10 -10 -10 -8 -8 -8 -7 -7 -7 -7 -7 -7 -6 -6 -6 -6 -6 -6 -6 -5 -5 -5 -5 -5 -5 -4 --------- Run | Jun Mat Min Sub Mat Gar Mat Fac Was Fac Low Low Dat Pro Fac Was Fac Low Low Zio Pro Fac Ext Cet Arc Hub Fac Distress Signals 15 | . . . . 3 1 . . . 1 . . . . . . 1 . . . . . 1 2 . 4 2 Communications Jammed . | . . . . . . . . . . . . . . . . . . . . . . . . . . . Distress Signals . | . . . . . . . . . . . . . . . . . . . . . . . . . . . Times Spotted 295 | . 7 5 27 31 24 5 3 7 12 4 . 4 . 6 6 14 . 7 . 2 15 32 8 . 22 54 Peak Tracking Total 14 | . 3 2 4 5 6 3 1 5 5 4 . 3 . 2 6 10 . 10 . 2 8 6 4 . 6 14 Tactical Retreats 34 | . . . 3 . 2 . . 1 3 2 . 1 . 1 1 3 . 4 . 1 3 3 . . 1 5 Traps | -11 -10 -10 -10 -8 -8 -8 -7 -7 -7 -7 -7 -7 -6 -6 -6 -6 -6 -6 -6 -5 -5 -5 -5 -5 -5 -4 ------- Run | Jun Mat Min Sub Mat Gar Mat Fac Was Fac Low Low Dat Pro Fac Was Fac Low Low Zio Pro Fac Ext Cet Arc Hub Fac Traps Triggered 10 | . 1 . 2 . . 1 1 . . . . . . 2 . . . . . . . 1 . . . 2 Indirectly . | . . . . . . . . . . . . . . . . . . . . . . . . . . . Trap Hack Attempts . | . . . . . . . . . . . . . . . . . . . . . . . . . . . Triggered . | . . . . . . . . . . . . . . . . . . . . . . . . . . . Disarmed . | . . . . . . . . . . . . . . . . . . . . . . . . . . . Reprogrammed . | . . . . . . . . . . . . . . . . . . . . . . . . . . . Reused 3 | . . . . . . . . . . . . 2 . . . . . . . . . . . . 1 . Traps Extracted 4 | . . . . . . . . . . . . . . . . . 4 . . . . . . . . . Installed 3 | . . . . . . . . . . . . 2 . . . . . . . . . . . . 1 . Triggered 5 | . . . . . . . . . . . . . 3 . . . . . . . . 1 . . 1 . Most Traps Carried 5 | . . . . . . . . . . 2 2 2 . . . . 5 4 4 4 4 4 4 4 4 3 Machines | -11 -10 -10 -10 -8 -8 -8 -7 -7 -7 -7 -7 -7 -6 -6 -6 -6 -6 -6 -6 -5 -5 -5 -5 -5 -5 -4 ---------- Run | Jun Mat Min Sub Mat Gar Mat Fac Was Fac Low Low Dat Pro Fac Was Fac Low Low Zio Pro Fac Ext Cet Arc Hub Fac Machines Disabled 37 | . . . 2 2 8 . . . . . . 1 . . . . 1 . . . 1 5 . . . 17 Max in Single Turn 2 | . . . 1 1 2 . . . . . . 1 . . . . 1 . . . 1 1 . . . 2 Garrison Access 7 | . . . . . . . . . 2 . . . . 1 . 3 . . . . . . . . 1 . Garrison Relay 7 | . . . . . 7 . . . . . . . . . . . . . . . . . . . . . Network Hub 2 | . . . . . . . . . . . . . . . . . . . . . . . . . 2 . Machines Repaired . | . . . . . . . . . . . . . . . . . . . . . . . . . . . Machines Sabotaged . | . . . . . . . . . . . . . . . . . . . . . . . . . . . Overloaded Fab Kills . | . . . . . . . . . . . . . . . . . . . . . . . . . . . Hacking | -11 -10 -10 -10 -8 -8 -8 -7 -7 -7 -7 -7 -7 -6 -6 -6 -6 -6 -6 -6 -5 -5 -5 -5 -5 -5 -4 --------- Run | Jun Mat Min Sub Mat Gar Mat Fac Was Fac Low Low Dat Pro Fac Was Fac Low Low Zio Pro Fac Ext Cet Arc Hub Fac Machines Accessed 57 | . 2 . 1 3 3 1 2 . 5 . 2 3 . 12 . 13 . . . . 2 4 . 1 1 2 Terminals 25 | . 2 . . 1 3 . 1 . 2 . . . . 5 . 7 . . . . . 4 . . . . Fabricators 6 | . . . . . . . 1 . 1 . . . . 1 . 1 . . . . 1 . . . . 1 Repair Stations 3 | . . . . 1 . . . . . . . . . 1 . . . . . . . . . . . 1 Recycling Units 7 | . . . . . . . . . . . . . . 4 . 2 . . . . 1 . . . . . Scanalyzers 1 | . . . . . . 1 . . . . . . . . . . . . . . . . . . . . Garrison Access 8 | . . . . 1 . . . . 2 . . . . 1 . 3 . . . . . . . . 1 . Total Hacks 185 | . 3 . 9 7 8 4 4 . 8 . 7 23 . 35 . 35 . . . . 4 5 . 25 2 6 Successful 154 | . 1 . 9 4 2 4 2 . 6 . 7 23 . 28 . 31 . . . . 2 4 . 25 1 5 Failed 31 | . 2 . . 3 6 . 2 . 2 . . . . 7 . 4 . . . . 2 1 . . 1 1 Catastrophic 3 | . 1 . . 1 1 . . . . . . . . . . . . . . . . . . . . . Database Lockouts . | . . . . . . . . . . . . . . . . . . . . . . . . . . . Manual 143 | . 3 . . 3 . . 2 . 1 . . . . 18 . 23 . . . . 32 8 . . 36 17 Terminals 60 | . 3 . . 3 8 . 2 . 5 . . . . 14 . 20 . . . . . 5 . . . . Fabricators 14 | . . . . . . . 2 . 1 . . . . 3 . 2 . . . . 2 . . . . 4 Repair Stations 6 | . . . . 2 . . . . . . . . . 2 . . . . . . . . . . . 2 Recycling Units 22 | . . . . . . . . . . . . . . 13 . 7 . . . . 2 . . . . . Scanalyzers 4 | . . . . . . 4 . . . . . . . . . . . . . . . . . . . . Garrison Access 15 | . . . . 2 . . . . 2 . . . . 3 . 6 . . . . . . . . 2 . Terminal Hacks 88 | . . . 9 . 2 . . . 3 . 7 23 . 7 . 8 . . . . . 4 . 25 . . Record 45 | . . . 8 . . . . . . . 6 6 . . . . . . . . . . . 25 . . Part Schematic 13 | . . . . . . . . . 1 . . 10 . 1 . 1 . . . . . . . . . . Robot Schematic 4 | . . . . . . . . . . . . 4 . . . . . . . . . . . . . . Prototype ID Bank 5 | . . . . . . . . . . . . 3 . 1 . 1 . . . . . . . . . . Open Door 6 | . . . . . 1 . . . . . 1 . . . . . . . . . . 4 . . . . Branch Access Points 2 | . . . . . . . . . 1 . . . . . . 1 . . . . . . . . . . Emergency Access Points 1 | . . . . . 1 . . . . . . . . . . . . . . . . . . . . . Machine Index 1 | . . . . . . . . . . . . . . 1 . . . . . . . . . . . . Terminal Index 2 | . . . . . . . . . . . . . . 1 . 1 . . . . . . . . . . Fabricator Index 1 | . . . . . . . . . . . . . . 1 . . . . . . . . . . . . Locate Traps 2 | . . . . . . . . . . . . . . 1 . 1 . . . . . . . . . . Transport Status 1 | . . . . . . . . . . . . . . . . 1 . . . . . . . . . . Recall Investigation 1 | . . . . . . . . . . . . . . 1 . . . . . . . . . . . . Hauler Manifests 3 | . . . . . . . . . 1 . . . . . . 2 . . . . . . . . . . Derelict Proto ID Bank 1 | . . . 1 . . . . . . . . . . . . . . . . . . . . . . . Fabricator Hacks 7 | . . . . . . . 1 . 1 . . . . 2 . 1 . . . . 1 . . . . 1 Network Status 4 | . . . . . . . 1 . 1 . . . . . . 1 . . . . . . . . . 1 Load Schematic 2 | . . . . . . . . . . . . . . 1 . . . . . . 1 . . . . . Build 1 | . . . . . . . . . . . . . . 1 . . . . . . . . . . . . Repair Station Hacks 6 | . . . . 2 . . . . . . . . . 2 . . . . . . . . . . . 2 Scan Component 3 | . . . . 1 . . . . . . . . . 1 . . . . . . . . . . . 1 Repair 3 | . . . . 1 . . . . . . . . . 1 . . . . . . . . . . . 1 Recycling Unit Hacks 2 | . . . . . . . . . . . . . . 1 . 1 . . . . . . . . . . Retrieve Components 2 | . . . . . . . . . . . . . . 1 . 1 . . . . . . . . . . Scanalyzer 4 | . . . . . . 4 . . . . . . . . . . . . . . . . . . . . Insert Component 2 | . . . . . . 2 . . . . . . . . . . . . . . . . . . . . Analyze 2 | . . . . . . 2 . . . . . . . . . . . . . . . . . . . . Garrison Access Hacks 8 | . . . . 1 . . . . 2 . . . . 1 . 3 . . . . . . . . 1 . Unlock Access 1 | . . . . 1 . . . . . . . . . . . . . . . . . . . . . . Seal Access 7 | . . . . . . . . . 2 . . . . 1 . 3 . . . . . . . . 1 . Unauthorized Hacks 39 | . 1 . . 1 . . 1 . . . . . . 15 . 18 . . . . 1 . . . . 2 Terminals 17 | . 1 . . 1 . . 1 . . . . . . 3 . 11 . . . . . . . . . . Track 2 | . . . . . . . . . . . . . . . . 2 . . . . . . . . . . Assimilate 5 | . 1 . . . . . 1 . . . . . . 1 . 2 . . . . . . . . . . Botnet 6 | . . . . . . . . . . . . . . 1 . 5 . . . . . . . . . . Disrupt 1 | . . . . . . . . . . . . . . . . 1 . . . . . . . . . . Operators 3 | . . . . 1 . . . . . . . . . 1 . 1 . . . . . . . . . . Fabricators 4 | . . . . . . . . . . . . . . 1 . 1 . . . . . . . . . 2 Prioritize 1 | . . . . . . . . . . . . . . 1 . . . . . . . . . . . . Liberate 1 | . . . . . . . . . . . . . . . . . . . . . . . . . . 1 Haulers 2 | . . . . . . . . . . . . . . . . 1 . . . . . . . . . 1 Repair Stations . | . . . . . . . . . . . . . . . . . . . . . . . . . . . Recycling Units 18 | . . . . . . . . . . . . . . 11 . 6 . . . . 1 . . . . . Monitor 3 | . . . . . . . . . . . . . . 2 . 1 . . . . . . . . . . Reject 6 | . . . . . . . . . . . . . . 4 . 2 . . . . . . . . . . Recyclers 3 | . . . . . . . . . . . . . . 1 . 1 . . . . 1 . . . . . Mask 6 | . . . . . . . . . . . . . . 4 . 2 . . . . . . . . . . Scanalyzers . | . . . . . . . . . . . . . . . . . . . . . . . . . . . Garrison Access . | . . . . . . . . . . . . . . . . . . . . . . . . . . . Data Cores Recovered 2 | . . . . 1 . . . . . . . . . . . . . . . . . 1 . . . . Used . | . . . . . . . . . . . . . . . . . . . . . . . . . . . Hacking Detections 35 | . 1 . . 2 3 . 2 . 2 . . . . 11 . 8 . . . . 2 2 . . 1 1 Full Trace Events 2 | . . . . . 1 . . . . . . . . 1 . . . . . . . . . . . . Feedback Events . | . . . . . . . . . . . . . . . . . . . . . . . . . . . Feedback Blocked . | . . . . . . . . . . . . . . . . . . . . . . . . . . . Robot Schematics Acquired 9 | . . . . . . . . . . . . 4 . . . . . . . . 5 . . . . . Robots Built . | . . . . . . . . . . . . . . . . . . . . . . . . . . . Authchips . | . . . . . . . . . . . . . . . . . . . . . . . . . . . Time . | . . . . . . . . . . . . . . . . . . . . . . . . . . . Total Robot Build Rating . | . . . . . . . . . . . . . . . . . . . . . . . . . . . Part Schematics Acquired 62 | . . . . . . 2 . . 1 . . 10 . 1 . 1 . . . . 24 . . . 23 . Parts Built 2 | . . . . . . . . . . . . . . 2 . . . . . . . . . . . . Authchips . | . . . . . . . . . . . . . . . . . . . . . . . . . . . Time 47 | . . . . . . . . . . . . . . 47 . . . . . . . . . . . . Total Part Build Rating 10 | . . . . . . . . . . . . . . 10 . . . . . . . . . . . . Parts Repaired 3 | . . . . 1 . . . . . . . . . 1 . . . . . . . . . . . 1 Time 148 | . . . . 26 . . . . . . . . . 14 . . . . . . . . . . . 108 Parts Recycled . | . . . . . . . . . . . . . . . . . . . . . . . . . . . Recycled Matter . | . . . . . . . . . . . . . . . . . . . . . . . . . . . Retrieved Matter . | . . . . . . . . . . . . . . . . . . . . . . . . . . . Retrieved Components 4 | . . . . . . . . . . . . . . 1 . 3 . . . . . . . . . . Parts Scanalyzed 2 | . . . . . . 2 . . . . . . . . . . . . . . . . . . . . Part Schematics Acquired 2 | . . . . . . 2 . . . . . . . . . . . . . . . . . . . . Parts Damaged . | . . . . . . . . . . . . . . . . . . . . . . . . . . . Bothacking | -11 -10 -10 -10 -8 -8 -8 -7 -7 -7 -7 -7 -7 -6 -6 -6 -6 -6 -6 -6 -5 -5 -5 -5 -5 -5 -4 ------------ Run | Jun Mat Min Sub Mat Gar Mat Fac Was Fac Low Low Dat Pro Fac Was Fac Low Low Zio Pro Fac Ext Cet Arc Hub Fac Used RIF Installer . | . . . . . . . . . . . . . . . . . . . . . . . . . . . Robots Hacked . | . . . . . . . . . . . . . . . . . . . . . . . . . . . Non-combat . | . . . . . . . . . . . . . . . . . . . . . . . . . . . Combat . | . . . . . . . . . . . . . . . . . . . . . . . . . . . Robot Hacks Applied . | . . . . . . . . . . . . . . . . . . . . . . . . . . . Relay Couplers Released 33 | . . . . . 33 . . . . . . . . . . . . . . . . . . . . . Machine Destruction 33 | . . . . . 33 . . . . . . . . . . . . . . . . . . . . . Fabnet Peak Effective % . | . . . . . . . . . . . . . . . . . . . . . . . . . . . Robots Rewired 13 | . . . . . . . . . . . . . . . . . . . . . . 13 . . . . Allies Hacked 4 | . . . . . . . . . . . . . . . . . . . . 1 1 . . . 2 . Hacks Repelled . | . . . . . . . . . . . . . . . . . . . . . . . . . . . Allies | -11 -10 -10 -10 -8 -8 -8 -7 -7 -7 -7 -7 -7 -6 -6 -6 -6 -6 -6 -6 -5 -5 -5 -5 -5 -5 -4 -------- Run | Jun Mat Min Sub Mat Gar Mat Fac Was Fac Low Low Dat Pro Fac Was Fac Low Low Zio Pro Fac Ext Cet Arc Hub Fac Total Allies 94 | . . 5 . . 2 . 1 18 . . . . . 1 19 1 . . 4 . 6 30 . . 6 1 Largest Group 21 | . . 5 5 . 2 . 1 18 . . . . . 1 19 1 . . 4 4 4 21 20 12 7 1 Highest-Rated Group 850 | . . 78 78 . 62 . 10 434 . . . . . 10 684 10 . . 153 153 112 850 811 366 353 135 Highest-Rated Ally 159 | . . 31 31 . 31 . 10 35 . . . . . 10 50 10 . . 40 40 28 159 70 65 70 135 Zionite Dispatches 9 | . . . . . . . . . . . . . . . . . . . . . 3 3 . . 2 1 Light 3 | . . . . . . . . . . . . . . . . . . . . . . 2 . . 1 . Recon 1 | . . . . . . . . . . . . . . . . . . . . . 1 . . . . . Fire 2 | . . . . . . . . . . . . . . . . . . . . . 1 . . . 1 . Hacker 1 | . . . . . . . . . . . . . . . . . . . . . . 1 . . . . Hero 1 | . . . . . . . . . . . . . . . . . . . . . . . . . . 1 Explosive Resupply 1 | . . . . . . . . . . . . . . . . . . . . . 1 . . . . . Total Orders 33 | . . . . . . . . . . . . . . . . . . . . . 28 2 . . 3 . STAY 1 | . . . . . . . . . . . . . . . . . . . . . 1 . . . . . ROAM 2 | . . . . . . . . . . . . . . . . . . . . . 2 . . . . . FOLLOW 9 | . . . . . . . . . . . . . . . . . . . . . 9 . . . . . DROP 1 | . . . . . . . . . . . . . . . . . . . . . 1 . . . . . EXPLORE 10 | . . . . . . . . . . . . . . . . . . . . . 8 . . . 2 . RETURN 10 | . . . . . . . . . . . . . . . . . . . . . 7 2 . . 1 . Ally Attacks 681 | . . 9 62 . . . . 149 . . . . . . 94 . . . . 3 2 136 126 . 77 23 Total Damage 23566 | . . 126 768 . . . . 6106 . . . . . . 4560 . . . . 46 39 3583 2774 . 1599 3965 Kills 106 | . . 3 11 . . . . 12 . . . . . . 12 . . . . . . 27 14 . 10 17 Allies Corrupted 6 | . . . . . . . . . . . . . . . . . . . . 3 2 . . . 1 . Allies Melted . | . . . . . . . . . . . . . . . . . . . . . . . . . . . Intel | -11 -10 -10 -10 -8 -8 -8 -7 -7 -7 -7 -7 -7 -6 -6 -6 -6 -6 -6 -6 -5 -5 -5 -5 -5 -5 -4 ------- Run | Jun Mat Min Sub Mat Gar Mat Fac Was Fac Low Low Dat Pro Fac Was Fac Low Low Zio Pro Fac Ext Cet Arc Hub Fac Robot Analysis Total . | . . . . . . . . . . . . . . . . . . . . . . . . . . . Derelict Logs Recovered 13 | . . 1 2 . . . . . . 2 1 . 1 . . . 2 1 2 1 . . . . . . Drone Launches 11 | . . . . . . . . . . . . . . . . . . . . . 8 2 . . 1 . Drone Recoveries 10 | . . . . . . . . . . . . . . . . . . . . . 8 2 . . . . Decoded 0b10 Intel 79 | . . . . . . . . . . . . . . . . . . . . . 29 26 . . 9 15 Traps 25 | . . . . . . . . . . . . . . . . . . . . . . 7 . . 7 11 Emergency Access 19 | . . . . . . . . . . . . . . . . . . . . . 10 3 . . 2 4 Items 30 | . . . . . . . . . . . . . . . . . . . . . 17 13 . . . . Machines 2 | . . . . . . . . . . . . . . . . . . . . . . 2 . . . . Guards 2 | . . . . . . . . . . . . . . . . . . . . . 2 . . . . . Exits 1 | . . . . . . . . . . . . . . . . . . . . . . 1 . . . . Zionite Intel Received 16 | . . . . . . . . . . . . . . . . . . . . . 6 . . . 8 2 Branch Access 1 | . . . . . . . . . . . . . . . . . . . . . . . . . 1 . Emergency Access 1 | . . . . . . . . . . . . . . . . . . . . . . . . . 1 . Guard Positions 1 | . . . . . . . . . . . . . . . . . . . . . . . . . 1 . Component Stockpiles 1 | . . . . . . . . . . . . . . . . . . . . . 1 . . . . . Prototype Stockpiles 2 | . . . . . . . . . . . . . . . . . . . . . . . . . 1 1 Component Schematics 2 | . . . . . . . . . . . . . . . . . . . . . 1 . . . 1 . Prototype Schematics 2 | . . . . . . . . . . . . . . . . . . . . . 1 . . . 1 . Unaware Schematics 1 | . . . . . . . . . . . . . . . . . . . . . 1 . . . . . Trap Installations 2 | . . . . . . . . . . . . . . . . . . . . . 1 . . . 1 . Active Terminals 1 | . . . . . . . . . . . . . . . . . . . . . . . . . 1 . Depthwide Sectors/0 1 | . . . . . . . . . . . . . . . . . . . . . 1 . . . . . Depthwide Sectors/-1 1 | . . . . . . . . . . . . . . . . . . . . . . . . . . 1 Exploration | -11 -10 -10 -10 -8 -8 -8 -7 -7 -7 -7 -7 -7 -6 -6 -6 -6 -6 -6 -6 -5 -5 -5 -5 -5 -5 -4 ------------- Run | Jun Mat Min Sub Mat Gar Mat Fac Was Fac Low Low Dat Pro Fac Was Fac Low Low Zio Pro Fac Ext Cet Arc Hub Fac Turns Passed 18179 | 67 359 1530 5264 1340 1254 478 220 219 253 293 244 171 187 621 163 564 369 223 539 389 767 1171 189 26 565 714 Spaces Moved 16499 | 40 159 581 2546 670 536 258 266 413 460 572 545 209 373 1155 318 1021 331 378 981 499 914 1256 161 41 856 960 Core 15 | 6 . . . . . . . . . . . . . . . . . . . . . . . . . 9 Treads 3209 | 34 159 548 1326 348 536 258 . . . . . . . . . . . . . . . . . . . . Legs . | . . . . . . . . . . . . . . . . . . . . . . . . . . . Wheels 1575 | . . 33 1220 322 . . . . . . . . . . . . . . . . . . . . . . Hover 75 | . . . . . . . . . . . . . . . . . . . . . . . . . . 75 Flight 11625 | . . . . . . . 266 413 460 572 545 209 373 1155 318 1021 331 378 981 499 914 1256 161 41 856 876 Fastest Speed 32 | 50 160 140 80 124 160 163 40 40 40 40 40 40 40 37 37 37 37 37 37 37 37 32 37 37 37 37 Average Speed 82 | 143 176 243 197 149 162 163 40 40 40 40 40 40 40 38 37 37 37 37 37 37 38 34 37 37 37 43 Slowest Speed 320 | 160 240 320 320 246 165 163 40 40 40 40 40 40 40 40 97 97 37 37 37 37 97 40 37 37 37 200 Overloaded Moves . | . . . . . . . . . . . . . . . . . . . . . . . . . . . Propulsion Burnouts . | . . . . . . . . . . . . . . . . . . . . . . . . . . . Robots Hopped 24 | . . . . . . . . . 5 1 . 1 . 2 . 2 . 1 . . 2 4 . . 4 2 Cave-ins Triggered . | . . . . . . . . . . . . . . . . . . . . . . . . . . . Exploration Rate (%) 54 | 5 29 94 95 47 51 24 6 95 14 78 64 80 54 29 89 32 44 32 89 73 32 90 59 77 72 27 Regions Visited 26 Branch Regions 14 Pre-discovered Areas 20 | . . 2 . . . . . . . 1 . 1 . . . . . 1 1 . 10 . . . . 4 Known Exits Taken 16 | . . . . 1 . . . . 1 1 1 1 1 . . 1 1 1 1 1 1 1 1 1 1 . Unknown Exits Taken 5 | 1 1 1 1 . . 1 . . . . . . . . . . . . . . . . . . . . Scrap Searched 35 | . . 2 15 . . . . . . 2 4 . 3 . . . 1 2 4 2 . . . . . . Spaces Dug 145 | . . . 10 . 9 . 6 2 . 5 3 5 2 19 2 23 1 5 . 3 13 7 . . 18 12 Terrain Destroyed 493 | . . . 86 54 17 . 6 2 32 6 3 5 2 21 2 24 1 6 . 7 13 27 . . 21 158 Melee 118 | . . . . . . . 6 2 . 5 3 5 1 19 2 23 1 5 . 3 11 6 . . 15 11 Projectile 22 | . . . 1 . 1 . . . . 1 . . 1 2 . 1 . 1 . . 2 1 . . 6 5 AOE 353 | . . . 85 54 16 . . . 32 . . . . . . . . . . 4 . 20 . . . 142 Terrain Rammed . | . . . . . . . . . . . . . . . . . . . . . . . . . . . Walls Destroyed . | . . . . . . . . . . . . . . . . . . . . . . . . . . . Machines Disabled . | . . . . . . . . . . . . . . . . . . . . . . . . . . . Actions | -11 -10 -10 -10 -8 -8 -8 -7 -7 -7 -7 -7 -7 -6 -6 -6 -6 -6 -6 -6 -5 -5 -5 -5 -5 -5 -4 --------- Run | Jun Mat Min Sub Mat Gar Mat Fac Was Fac Low Low Dat Pro Fac Was Fac Low Low Zio Pro Fac Ext Cet Arc Hub Fac Total 20070 | 47 200 643 2684 877 754 295 371 455 507 615 562 267 401 1276 360 1147 568 448 1154 693 1263 1915 284 51 1045 1188 Wait 2474 | . 14 19 9 65 91 8 72 33 29 27 3 22 13 72 33 94 226 60 158 185 293 545 105 11 151 136 Move 16430 | 39 158 580 2545 670 535 257 266 412 451 569 544 206 372 1151 317 1016 330 375 980 498 909 1247 160 40 847 956 Hop 22 | . . . . . . . . . 3 1 . 1 . 2 . 2 . 1 . . 2 4 . . 4 2 Pick Up 117 | 2 2 6 28 21 5 6 2 . 3 3 2 3 2 6 1 2 2 . 3 1 4 1 2 . . 10 Fast Attach 52 | 6 4 2 2 8 6 . 2 . . . 1 . 3 3 . . . . 1 . 1 4 3 . . 6 Attach 48 | . . 2 8 4 9 . 6 . 1 . . . . . . . 2 . 2 . 1 2 1 . 1 9 Detach 27 | . . 2 2 3 4 . 4 . . . . . . 1 1 . 1 . 3 . . 1 1 . . 4 Swap 102 | . 2 3 9 13 9 3 1 . 5 3 2 2 . 4 1 5 . 5 4 4 11 9 4 . 3 . Drop 104 | . . . 10 17 5 8 9 . 4 1 3 3 3 6 5 1 2 1 2 . 4 2 4 . 1 13 Fire 398 | . 20 28 67 72 90 13 . 8 4 2 . . 7 4 . 1 . 1 . 2 15 24 4 . 16 20 Melee 229 | . . . . . . . 9 2 7 9 7 28 1 27 2 26 5 5 1 3 23 24 . . 21 29 Ram 4 | . . . . 1 . . . . . . . . . . . . . . . . . . . . . 3 Kick . | . . . . . . . . . . . . . . . . . . . . . . . . . . . Crush 2 | . . 1 . 1 . . . . . . . . . . . . . . . . . . . . . . Escape Stasis 18 | . . . . . . . . . . . . . . . . . . . . . . 18 . . . . Rewire 34 | . . . . . . . . . . . . . . . . . . . . . . 34 . . . . Trap 3 | . . . . . . . . . . . . 2 . . . . . . . . . . . . 1 . Miscellaneous 6 | . . . 4 2 . . . . . . . . . . . . . . . . . . . . . . Route ------- -11/Junkyard -10/Materials (discovered 2 exits: [*Min] / *Sub) -10/Mines (discovered 3 exits: [*Mat x2] / *Sub) -10/Subcaves (discovered 3 exits: *Mat x2 / [*Rec]) -8/Materials -8/Garrison (discovered 2 exits: *Mat x2) -8/Materials -7/Factory -7/Waste -7/Factory (discovered 2 exits: *Low x2) -7/Lower Caves -7/Lower Caves -7/Data Miner -6/Proximity Caves -6/Factory (discovered 3 exits: *Fac x2 / Low) -6/Waste -6/Factory (discovered 3 exits: *Fac / *Low x2) -6/Lower Caves -6/Lower Caves -6/Zion -5/Proximity Caves -5/Factory (discovered 5 exits: *Fac x3 / Upp / *Ext) -5/Extension (discovered 3 exits: *Fac x2 / *Cet) -5/Cetus (discovered 2 exits: *Fac / *Arc) -5/Archives (discovered 2 exits: *Hub x2) -5/Hub_04(d) (discovered 3 exits: *Fac x3) -4/Factory (discovered 1 exit: *Res) History --------- Turn | Location | Event 6 | -11/Junkyard | Discovered new exit (range 14) 68 | -11/Junkyard | Entered Materials 174 | -10/Materials | Discovered new exit (range 12) 307 | -10/Materials | Discovered new exit (range 8) 319 | -10/Materials | Build established: Mutant 427 | -10/Materials | Entered Mines 432 | -10/Mines | Met a Derelict bent on vengeance 1028 | -10/Mines | Discovered new exit (range 9) 1357 | -10/Mines | Build established: Scavenger-Mutant 1480 | -10/Mines | Assisted by bots powering up and referring to "LRC-V3" 1612 | -10/Mines | Learned location of Storage (-9) 1818 | -10/Mines | Discovered new exit (range 6) 1945 | -10/Mines | Discovered new exit (range 6) 1957 | -10/Mines | Entered Subcaves 1957 | -10/Subcaves | Accompanied by 5 allies 1962 | -10/Subcaves | Led the pair of lost Derelicts to an unsafe place 2040 | -10/Subcaves | A swath of the cavern ceiling suddenly collapsed 2278 | -10/Subcaves | Discovered new exit (range 8) 2597 | -10/Subcaves | Discovered new exit (range 15) 2951 | -10/Subcaves | Discovered new exit (range 6) 3396 | -10/Subcaves | Build established: Mutant 3517 | -10/Subcaves | Visited Clippyterm 3603 | -10/Subcaves | Learned Materials security intel 3736 | -10/Subcaves | Shifting Twisted Machinery released Battle Cannon 3753 | -10/Subcaves | Learned Materials stockpile data 3759 | -10/Subcaves | Shifting Twisted Machinery released Humpback 4128 | -10/Subcaves | A swath of the cavern ceiling suddenly collapsed 4862 | -10/Subcaves | Shifting Twisted Machinery released Riot Gun 4938 | -10/Subcaves | Shifting Twisted Machinery released Sub. Power Source 5235 | -10/Subcaves | Core integrity fell below 50% 5936 | -10/Subcaves | Build established: Subdweller-Mutant 6312 | -10/Subcaves | Visited 4L-MR0's lab 6331 | -10/Subcaves | Found Flightbrick 7221 | -10/Subcaves | Entered Materials 7221 | -8/Materials | Evolved 4 slots: Propulsion x2, Utility x2 7926 | -8/Materials | Repaired Lgt. Treads 7958 | -8/Materials | Garrison activated, responded to threat 8281 | -8/Materials | Build established: Mutant 8561 | -8/Materials | Identified exit to Garrison 8561 | -8/Materials | Entered Garrison 8632 | -8/Garrison | Triggered checkpoint 8704 | -8/Garrison | Garrison Relay disabled 8848 | -8/Garrison | Spotted B-75 Beast 8902 | -8/Garrison | Destroyed B-75 Beast 8926 | -8/Garrison | Lost 8 parts (2p2n2u2w) 9094 | -8/Garrison | Triggered checkpoint 9213 | -8/Garrison | Discovered new exit (range 12) 9231 | -8/Garrison | Triggered checkpoint 9269 | -8/Garrison | Garrison Relay disabled 9342 | -8/Garrison | Triggered checkpoint 9352 | -8/Garrison | Core integrity fell below 50% 9480 | -8/Garrison | Garrison Relay disabled 9480 | -8/Garrison | Garrison Relay disabled 9484 | -8/Garrison | Garrison Relay disabled 9484 | -8/Garrison | Garrison Relay disabled 9520 | -8/Garrison | Discovered new exit (range 12) 9541 | -8/Garrison | Triggered checkpoint 9647 | -8/Garrison | Garrison Relay disabled 9662 | -8/Garrison | Rescued a captive Derelict 9663 | -8/Garrison | Rescued a captive Derelict 9815 | -8/Garrison | Entered Materials 9908 | -8/Materials | Build established: Scavenger-Mutant 10140 | -8/Materials | Core integrity fell below 20% 10280 | -8/Materials | Discovered new exit (range 7) 10293 | -8/Materials | Entered Factory 10293 | -7/Factory | Evolved 2 slots: Utility x2 10296 | -7/Factory | Attached Flightbrick, gained temporary slots: Utility x3 10513 | -7/Factory | Sucked down chute 10513 | -7/Factory | Entered Waste 10539 | -7/Waste | Spotted C-40 Crusher 10539 | -7/Waste | Spotted C-40 Crusher 10539 | -7/Waste | Spotted C-40 Crusher 10540 | -7/Waste | Spotted C-40 Crusher 10570 | -7/Waste | Spotted C-40 Crusher 10571 | -7/Waste | Spotted C-40 Crusher 10581 | -7/Waste | Warlord forces began an assault 10593 | -7/Waste | Build established: Hacker-Mutant 10595 | -7/Waste | Allies destroyed C-40 Crusher 10613 | -7/Waste | Allies destroyed C-40 Crusher 10615 | -7/Waste | Allies destroyed C-40 Crusher 10619 | -7/Waste | Allies destroyed C-40 Crusher 10624 | -7/Waste | Allies destroyed C-40 Crusher 10702 | -7/Waste | Allies destroyed C-40 Crusher 10719 | -7/Waste | Discovered new exit (range 12) 10732 | -7/Waste | Identified exit to Factory 10732 | -7/Waste | Entered Factory 10779 | -7/Factory | Identified exit to Lower Caves 10985 | -7/Factory | Entered Lower Caves 11025 | -7/Lower Caves | Met a Warlord Commander 11026 | -7/Lower Caves | Learned location of Warlord (-5) 11028 | -7/Lower Caves | Found Encrypted Comm Array 11033 | -7/Lower Caves | Learned Factory stockpile data 11163 | -7/Lower Caves | Learned location of 2 exits from Factory 11273 | -7/Lower Caves | Discovered new exit (range 10) 11276 | -7/Lower Caves | Identified exit to Lower Caves 11278 | -7/Lower Caves | Entered another Lower Caves area 11300 | -7/Lower Caves | Encountered a Warlord checkpoint 11387 | -7/Lower Caves | Discovered new exit (range 11) 11412 | -7/Lower Caves | Learned Extension stockpile data 11412 | -7/Lower Caves | Learned Armory stockpile data 11412 | -7/Lower Caves | Learned Factory terminal intel 11427 | -7/Lower Caves | Learned location of 1 exit from Factory 11521 | -7/Lower Caves | Identified exit to Data Miner 11522 | -7/Lower Caves | Entered Data Miner 11522 | -7/Data Miner | Discovered new exit (range 6) 11530 | -7/Data Miner | Met Data Miner 11537 | -7/Data Miner | Learned location of Section 7 (-2) 11537 | -7/Data Miner | Acquired the access code to Warlord's prototype stash 11543 | -7/Data Miner | Received God Mode back door access code from Data Miner 11552 | -7/Data Miner | Identified exit to Proximity Caves 11602 | -7/Data Miner | Data Conduit disabled 11693 | -7/Data Miner | Entered Proximity Caves 11704 | -6/Proximity Caves | Found Alien Artifact 11704 | -6/Proximity Caves | Identified Core Expander 11704 | -6/Proximity Caves | Installed Core Expander, added new Propulsion slot 11842 | -6/Proximity Caves | Identified exit to Factory 11865 | -6/Proximity Caves | Spotted B-75 Beast 11880 | -6/Proximity Caves | Entered Factory 11880 | -6/Factory | Evolved 2 slots: Power x1, Utility x1 11881 | -6/Factory | Identified exit to Factory 11881 | -6/Factory | Identified exit to Lower Caves 11883 | -6/Factory | Loaded intel: 26 terminal locations 12132 | -6/Factory | Fabricated Adv. Signal Interpreter? 12367 | -6/Factory | Repaired Lyr. Light Armor Plating 12501 | -6/Factory | Sucked down chute 12501 | -6/Factory | Entered Waste 12504 | -6/Waste | Spotted C-40 Crusher 12538 | -6/Waste | Spotted C-40 Crusher 12547 | -6/Waste | Spotted C-40 Crusher 12547 | -6/Waste | Spotted C-40 Crusher 12566 | -6/Waste | Spotted C-40 Crusher 12568 | -6/Waste | Spotted C-40 Crusher 12578 | -6/Waste | Discovered new exit (range 16) 12582 | -6/Waste | Warlord forces began an assault 12592 | -6/Waste | Allies destroyed C-40 Crusher 12596 | -6/Waste | Allies destroyed C-40 Crusher 12603 | -6/Waste | Allies destroyed C-40 Crusher 12618 | -6/Waste | Allies destroyed C-40 Crusher 12664 | -6/Waste | Identified exit to Factory 12664 | -6/Waste | Entered Factory 12731 | -6/Factory | Found Prototype Processor 12794 | -6/Factory | Identified Exp. Targeting Computer 12944 | -6/Factory | Discovered exit to Factory (range 8) 13228 | -6/Factory | Entered Lower Caves 13491 | -6/Lower Caves | Encountered a Warlord checkpoint 13495 | -6/Lower Caves | Learned location of 1 exit from Factory 13523 | -6/Lower Caves | Learned 12 Factory zone layouts 13570 | -6/Lower Caves | Discovered new exit (range 13) 13589 | -6/Lower Caves | Found Alien Artifact 13594 | -6/Lower Caves | Identified exit to Lower Caves 13597 | -6/Lower Caves | Entered another Lower Caves area 13599 | -6/Lower Caves | Attracted the attention of an 0b10 outpost 13599 | -6/Lower Caves | Learned location of Extension (-5) 13617 | -6/Lower Caves | Discovered new exit (range 10) 13820 | -6/Lower Caves | Identified exit to Zion 13820 | -6/Lower Caves | Entered Zion 13825 | -6/Zion | Learned Factory terminal intel 13847 | -6/Zion | Discovered new exit (range 12) 13866 | -6/Zion | System corruption cleaned by Quarantine Array 13915 | -6/Zion | Given the Hacking Drone Bay 13941 | -6/Zion | Learned location of Testing (-2) 13974 | -6/Zion | Learned location of 1 exit from Factory 14069 | -6/Zion | Found Prototype Device 14074 | -6/Zion | Identified Hacking Drone Bay 14115 | -6/Zion | Imprinted 14117 | -6/Zion | Declared Zion's savior 14136 | -6/Zion | Visited the Megawrench Repair Shop 14136 | -6/Zion | Megawrench repaired 7 parts 14200 | -6/Zion | Identified exit to Proximity Caves 14359 | -6/Zion | Entered Proximity Caves 14359 | -5/Proximity Caves | Accompanied by 4 allies 14360 | -5/Proximity Caves | Build established: Hacker-Scout 14449 | -5/Proximity Caves | Learned Factory trap positions 14456 | -5/Proximity Caves | Attracted the attention of an 0b10 checkpoint 14477 | -5/Proximity Caves | Spotted B-75 Beast 14744 | -5/Proximity Caves | Discovered exit to Factory (range 8) 14748 | -5/Proximity Caves | Entered Factory 14748 | -5/Factory | Evolved 2 slots: Propulsion x1, Utility x1 14749 | -5/Factory | Identified exit to Factory 14749 | -5/Factory | Identified exit to Extension 14750 | -5/Factory | Identified exit to Upper Caves 14751 | -5/Factory | Loaded intel: 76 trap records 14752 | -5/Factory | Loaded intel: 28 terminal locations 14957 | -5/Factory | Retrieved Zion intel report: Depthwide Sectors/0 15036 | -5/Factory | Spotted B-75 Beast 15037 | -5/Factory | Discovered exit to Factory (range 20) 15050 | -5/Factory | Retrieved Zion intel report: Prototype Schematics 15051 | -5/Factory | Zion Fire squad teleported in 15137 | -5/Factory | Retrieved Zion intel report: Trap Installations 15162 | -5/Factory | Retrieved Zion intel report: Unaware Schematics 15163 | -5/Factory | Zion Recon squad teleported in 15273 | -5/Factory | Retrieved Zion intel report: Component Stockpiles 15280 | -5/Factory | Retrieved Zion intel report: Component Schematics 15281 | -5/Factory | Zion Explosive Resupply teleported in 15515 | -5/Factory | Entered Extension 15515 | -5/Extension | Accompanied by 1 ally 15565 | -5/Extension | Build established: Derelict-Ninja 15621 | -5/Extension | Zion Hacker squad teleported in 15660 | -5/Extension | Rescued A7 15897 | -5/Extension | Build established: Hacker-Scout 16102 | -5/Extension | Spotted B-75 Beast 16282 | -5/Extension | Spotted B-75 Beast 16316 | -5/Extension | Allies destroyed B-75 Beast 16322 | -5/Extension | Allies destroyed B-75 Beast 16415 | -5/Extension | Extracted ID and sensor layout for unrecognized location from A7's data core 16453 | -5/Extension | Zion Light squad teleported in 16461 | -5/Extension | Zion Light squad teleported in 16473 | -5/Extension | Rescued a captive Derelict 16473 | -5/Extension | Rescued a captive Derelict 16528 | -5/Extension | Rescued a captive Derelict 16529 | -5/Extension | Rescued a captive Derelict 16571 | -5/Extension | Rescued a captive Derelict 16573 | -5/Extension | Rescued a captive Derelict 16596 | -5/Extension | Rescued a captive Derelict 16616 | -5/Extension | Discovered exit to Factory (range 10) 16616 | -5/Extension | Discovered new exit (range 6) 16622 | -5/Extension | Identified exit to Cetus 16686 | -5/Extension | Entered Cetus 16686 | -5/Cetus | Accompanied by 20 allies 16694 | -5/Cetus | Spotted Cetus Guard 16694 | -5/Cetus | Spotted Cetus Guard 16694 | -5/Cetus | Spotted Cetus Guard 16696 | -5/Cetus | Spotted Cetus Guard 16704 | -5/Cetus | Allies destroyed Cetus Guard 16705 | -5/Cetus | Allies destroyed Cetus Guard 16711 | -5/Cetus | Allies destroyed Cetus Guard 16712 | -5/Cetus | Allies destroyed Cetus Guard 16739 | -5/Cetus | Discovered new exit (range 22) 16787 | -5/Cetus | Found Prototype Protection 16787 | -5/Cetus | Identified Zio. Weapon Casing 16794 | -5/Cetus | Spotted Cetus Guard 16796 | -5/Cetus | Spotted Cetus Guard 16797 | -5/Cetus | Spotted Cetus Guard 16803 | -5/Cetus | Allies destroyed Cetus Guard 16803 | -5/Cetus | Spotted Cetus Guard 16811 | -5/Cetus | Allies destroyed Cetus Guard 16817 | -5/Cetus | Allies destroyed Cetus Guard 16818 | -5/Cetus | Allies destroyed Cetus Guard 16824 | -5/Cetus | Discovered exit to Factory (range 21) 16828 | -5/Cetus | Scared off Revision 17 16843 | -5/Cetus | Identified exit to Archives 16875 | -5/Cetus | Entered Archives 16875 | -5/Archives | Accompanied by 12 allies 16880 | -5/Archives | Met Zhirov 16880 | -5/Archives | Discovered new exit (range 22) 16881 | -5/Archives | Discovered new exit (range 22) 16884 | -5/Archives | Read partially decrypted archive contents 16886 | -5/Archives | Reinforcements dispatched to Archives 16890 | -5/Archives | Identified exit to Hub_04(d) 16901 | -5/Archives | Entered Hub_04(d) 16901 | -5/Hub_04(d) | Accompanied by 2 allies 16903 | -5/Hub_04(d) | Discovered exit to Factory (range 22) 16932 | -5/Hub_04(d) | Garrison activated, responded to threat 16943 | -5/Hub_04(d) | Retrieved Zion intel report: Active Terminals 16944 | -5/Hub_04(d) | Zion Light squad teleported in 17044 | -5/Hub_04(d) | Retrieved Zion intel report: Guard Positions 17045 | -5/Hub_04(d) | Zion Fire squad teleported in 17100 | -5/Hub_04(d) | Discovered exit to Factory (range 5) 17154 | -5/Hub_04(d) | Retrieved Zion intel report: Prototype Stockpiles 17189 | -5/Hub_04(d) | Retrieved Zion intel report: Component Schematics 17246 | -5/Hub_04(d) | Retrieved Zion intel report: Emergency Access 17265 | -5/Hub_04(d) | Retrieved Zion intel report: Trap Installations 17287 | -5/Hub_04(d) | Retrieved Zion intel report: Branch Access 17298 | -5/Hub_04(d) | Retrieved Zion intel report: Prototype Schematics 17443 | -5/Hub_04(d) | Network Hub disabled 17443 | -5/Hub_04(d) | Network Hub disabled 17459 | -5/Hub_04(d) | Discovered exit to Factory (range 21) 17462 | -5/Hub_04(d) | Spotted Lightning 17462 | -5/Hub_04(d) | Spotted Lightning 17466 | -5/Hub_04(d) | Entered Factory 17466 | -4/Factory | Evolved 2 slots: Utility x2 17511 | -4/Factory | Retrieved Zion intel report: Prototype Stockpiles 17512 | -4/Factory | Zion hero teleported in (99-TNT) 17593 | -4/Factory | Repaired Centrium Medium Armor Plating? 17725 | -4/Factory | Garrison activated, responded to threat 17769 | -4/Factory | Garrison activated, responded to threat 17778 | -4/Factory | Build established: Hacker-Ninja 17824 | -4/Factory | Found Prototype Launcher 17882 | -4/Factory | Spotted B-86 Titan 17966 | -4/Factory | First assault squad dispatched 17970 | -4/Factory | Identified 99-TNT's Nukerbomber 17982 | -4/Factory | Retrieved Zion intel report: Depthwide Sectors/-1 18010 | -4/Factory | Discovered new exit (range 21) 18020 | -4/Factory | Identified exit to Research 18112 | -4/Factory | Lost 3 parts (1n2u) 18169 | -4/Factory | Core integrity fell below 50% 18178 | -4/Factory | Core integrity fell below 20% 18180 | -4/Factory | Destroyed by G-67 Veteran with Plasma Rifle Last Messages --------------- 18168_ 99-TNT's Nukerbomber destroyed. 18168_ Destroyed 99-TNT's Nukerbomber. 18168_ G-73 Enforcer destroyed. 18168_ Destroyed Flexi-carbon Leg. 18168_ 0b10 Decoder Chip [Scout] destroyed. 18168_ Destroyed 0b10 Decoder Chip [Scout]. 18168_ G-67 Veteran destroyed. 18170_ Acquired 9 matter. 18170_ Enh. Optical Array severed. 18171_ Critical hit (Burn: +50). 18172_ C-30 ARC bursts open, deploying its payload. 18172_ G-73 Enforcer unfolds itself. 18172_ L-61 Swordsman unfolds itself. 18172_ G-67 Veteran unfolds itself. 18175_ The unstable cave ceiling collapses. 18175_ Slammed into L-61 Swordsman. 18175_ Multitool destroyed. 18177_ Slammed into G-67 Veteran. 18180_ Acquired 19 matter. 18180_ Critical hit (Burn: +50). Map ----- +----------------------------------------------------+ | ??????#"""" #???# #?# R | | ??????#"""" #???# #?# "" | | ??????#"""" #???# #?# | | ??????#"""" #???# #?##### | | ??????#"""" #???# #?????? | | ??????# #???# #?????? | | ??????# #???# #?????? | | ??????# #???# #?????? | | ####### #???# #?????? | | # # #???# #?????? | | # = # #???# #?????? | | # ###+####???# #?????? | | # # #????# #?????? | | # """ # ###### #?????? | | # """ + #?????? | | # """ # ######### #?????? | | # # " #???????# #?????? | | # ""###%###???????# #?????? | | # T"#?#"#?????????# #?????? | | # """#?# #?????????# #?????? | | # #?#=#?????????# #?????? | | # ##?#!#?????????# #???### | | ###%#?????????# #??? | | ##=#?????????# #???""" | | l gg%##*#?????????# #?# """ | | eg@g%/=/#?????????# #?# """ | | lg #####?????????# #?# | | ig #????????????# #?# """ | | ##????????????# #?# """ | | # ##?????????????# #?# """ | | # #?????????????## #?# | | ######??????????####"^#?# | | ????????????????+ ^^^#?# | | ????????????????##### #?# | | ????????????????????# #?###+# | | ????????????????????# #???# # | | ????????????????????# #???# # | | ????????????????????# ##??# # | | ????????????????????# "#??# # | | ????????????????????# ##??# # | | ?????????#+#+#######" ##??# # | | ?????????# #??# # | | ?????????# ^ #??# | | ?????????# #### | | ?????????###+####### ""## | | ???????????????????" | | ?????????????????# % | | ?????????????????# """ | | ?????????????????### """ | | ???"""????????????# """ | +----------------------------------------------------+ Best States ------------- Heat Dissipation 43 Energy Generation 24 Energy Capacity 700 Matter Stores 300 Matter Capacity 300 Sight Range 22 Robot Scan Range 16 Terrain Scan Range 20 Terrain Scan Density 10 ECM Strength 2 Cloak Strength 3 Armor Coverage 950 Evasion (%) 63 Targeting Accuracy 5 Recoil Reduction 4 Offensive Hacking 44 Defensive Hacking 12 Trap Extractor Capacity 6 Item Schematics ----------------- Multitool | -8/Materials | Scanalyzed Mni. Grenade Launcher | -8/Materials | Scanalyzed Adv. Signal Interpreter | -7/Factory | Hacked Combat Drone Bay | -7/Data Miner | Free Lgt. Regenerative Plating | -7/Data Miner | Free Biomechanical Wings | -7/Data Miner | Free Gravity Neutralizer | -7/Data Miner | Free Scatter Rocket Array | -7/Data Miner | Free Gyrokinetic Inverter | -7/Data Miner | Free Imp. Launcher Guidance Computer | -7/Data Miner | Free Lrn. Proton Cannon | -7/Data Miner | Free Phase Cannon | -7/Data Miner | Free Tesla Rifle | -7/Data Miner | Free Adv. Transmission Jammer | -6/Factory | Hacked Adv. Hacking Suite | -6/Factory | Hacked Imp. Matter Compressor | -5/Factory | Z-intel Cld. Deuterium Engine | -5/Factory | Z-intel Exp. Targeting Computer | -5/Factory | Z-intel Prc. Shock Rifle | -5/Factory | Z-intel Prc. Assault Rifle | -5/Factory | Z-intel Cld. Nuclear Pulse Thruster | -5/Factory | Z-intel Tesla Bomb Launcher | -5/Factory | Z-intel Hvy. Gatling Laser | -5/Factory | Z-intel Force Rifle | -5/Factory | Z-intel Mni. Smartbomb Launcher | -5/Factory | Z-intel Enh. Fission Core | -5/Factory | Z-intel Force Booster | -5/Factory | Z-intel Scythe | -5/Factory | Z-intel Adv. Shield Generator | -5/Factory | Z-intel Hvy. Phase Cannon | -5/Factory | Z-intel Hvy. Plasma Cannon | -5/Factory | Z-intel Imp. Core Shielding | -5/Factory | Z-intel Great Axe | -5/Factory | Z-intel Adv. Terrain Scanner | -5/Factory | Z-intel Med. Storage Unit | -5/Factory | Z-intel Nuclear Pulse Array | -5/Factory | Z-intel Arm. Medium Treads | -5/Factory | Z-intel Variable Charge Gun | -5/Factory | Z-intel Antigrav System | -5/Factory | Z-intel Weight Redist. System | -5/Hub_04(d) | Z-intel Adv. Trap Extractor | -5/Hub_04(d) | Z-intel Imp. Field Recycling Unit | -5/Hub_04(d) | Z-intel Imp. Component Analysis Suite | -5/Hub_04(d) | Z-intel Lgt. Angular Momentum Engine | -5/Hub_04(d) | Z-intel Phase Shifter | -5/Hub_04(d) | Z-intel Hvy. Shock Bomb Launcher | -5/Hub_04(d) | Z-intel Imp. Thermal Generator | -5/Hub_04(d) | Z-intel Cmb. Airjet | -5/Hub_04(d) | Z-intel Mic. Nuclear Core | -5/Hub_04(d) | Z-intel Imp. Medium Armor Plating | -5/Hub_04(d) | Z-intel Component Analysis Suite | -5/Hub_04(d) | Z-intel Enh. Optical Array | -5/Hub_04(d) | Z-intel Enh. Flexi-carbon Leg | -5/Hub_04(d) | Z-intel Cld. VTOL Module | -5/Hub_04(d) | Z-intel Enh. Armored Leg | -5/Hub_04(d) | Z-intel Exp. Heat Sink | -5/Hub_04(d) | Z-intel Cld. Plasma Rifle | -5/Hub_04(d) | Z-intel Hvy. Proton Missile Launcher | -5/Hub_04(d) | Z-intel Hpw. Field Laser | -5/Hub_04(d) | Z-intel Tri-rail Accelerator | -5/Hub_04(d) | Z-intel Fusion Reactor | -5/Hub_04(d) | Z-intel Imp. Heavy Laser | -5/Hub_04(d) | Z-intel Robot Schematics ------------------ H-66 Slayer | -7/Data Miner | Free G-47 Trooper | -7/Data Miner | Free B-48 Gladiator | -7/Data Miner | Free G-50 Soldier | -7/Data Miner | Free R-10 Processor | -5/Factory | Z-intel E-15 Imp | -5/Factory | Z-intel R-06 Scavenger | -5/Factory | Z-intel A-15 Conveyor | -5/Factory | Z-intel K-01 Serf | -5/Factory | Z-intel Fabricated ------------ Adv. Signal Interpreter | x2 | -6/Factory Alien Tech Used ----------------- Core Expander Achievements -------------- Sniper Challenges ------------ None Game ------ Seed XenonAlphaFalx Manual? 0 Play Time 02:54:29 Cumulative 525.1 hours Start 2023.12.02 @ 19:19:39 End 2023.12.02 @ 22:48:18 Sessions 1 Manual Loads 0 Difficulty Rogue Special Mode None Game No. 581 Rogue 494 Adventurer 87 Explorer 0 Win Type - Total 29 Types 8/0/16/1/1/0/3/0/0 Lore% 92 Gallery% 93 Achievement% 78 Wizard Run 0 Options --------- ASCII 0 Keyboard 1 Movement Numpad Keybinds 0 Fullscreen 1 Font 18/SmallcapsGlow Map View 76x50 Tactical HUD 1 Map Filters NONE Filters NONE Steam 1 RUN: e3862043-c1eb-4447-88bd-4bcd417248d0